bitfinex/quotes_SOLUSD_20260305
["timestamp","ask_amount","ask_price","bid_price","bid_amount"]
[1772744476328,11.19908615,89.293,89.259,0.5050452]
[1772744477550,11.69210419,89.293,89.259,0.5050452]
[1772744478047,0.49301804,89.292,89.259,0.5050452]
[1772744478546,11.19933699,89.291,89.261,0.5050452]
[1772744479637,11.19933699,89.291,89.263,0.5050452]
[1772744480448,1e-08,89.3,89.263,0.5050452]
[1772744480855,0.1,89.33,89.289,0.5050452]
[1772744481357,11.19505139,89.326,89.289,0.5050452]
[1772744481519,11.19505139,89.326,89.29,11.19946242]
[1772744481830,27.98659092,89.329,89.291,0.5050452]
[1772744482941,0.19948713,89.319,89.291,0.5050452]
[1772744483129,0.19948713,89.319,89.276,0.5050452]
[1772744484146,0.19994937,89.317,89.278,0.5050452]
[1772744485346,0.20040673,89.315,89.28,0.5050452]
[1772744486126,39.18670786,89.316,89.28,0.5050452]
[1772744486127,11.39706025,89.316,89.28,0.5050452]
[1772744486330,0.20085801,89.315,89.28,0.5050452]
[1772744486938,11.19620224,89.316,89.28,0.5050452]
[1772744487577,11.19620224,89.316,89.282,0.5050452]
[1772744488445,11.39574965,89.32,89.282,0.5050452]
[1772744489227,0.20261892,89.319,89.282,0.5050452]
[1772744490261,0.20346302,89.319,89.284,0.49921456]
[1772744491234,11.39928921,89.319,89.284,0.49921456]
[1772744492353,0.20429063,89.318,89.271,0.49921456]
[1772744494552,0.20510126,89.299,89.264,0.49921456]
[1772744496450,0.2058922,89.297,89.264,0.49921456]
[1772744496637,0.2062797,89.289,89.237,0.49921456]
[1772744498739,0.20704258,89.287,89.239,0.49921456]
[1772744500360,39.19899649,89.288,89.24,0.49921456]
[1772744500361,11.19971328,89.288,89.24,0.49921456]
[1772744501142,11.40750267,89.288,89.242,0.49921456]
[1772744501861,11.19971328,89.288,89.242,0.49921456]
[1772744502235,0.20815702,89.296,89.244,0.49921456]
[1772744502761,0.20852007,89.279,89.236,0.49921456]
[1772744503347,0.20852007,89.289,89.236,0.49921456]
[1772744503861,0.20887677,89.287,89.239,0.49921456]
[1772744505949,11.40954375,89.286,89.241,0.49921456]
[1772744506163,0.20957959,89.285,89.241,0.49921456]
[1772744508256,0.21026766,89.283,89.243,0.49921456]
[1772744510270,11.20046593,89.282,89.244,11.20523508]
[1772744510473,0.21093761,89.281,89.245,0.49921456]
[1772744511152,11.41173313,89.282,89.245,0.49921456]
[1772744511344,11.20046593,89.282,89.245,0.49921456]
[1772744512560,11.20013192,89.285,89.247,0.49921456]
[1772744512948,11.41091615,89.289,89.247,0.49921456]
[1772744514069,11.19851826,89.298,89.248,0.49921456]
[1772744514365,0.21224551,89.297,89.248,0.49921456]
[1772744514664,0.21257087,89.295,89.251,0.49921456]
[1772744516775,11.19896073,89.294,89.252,11.20423071]
[1772744516968,0.21319248,89.293,89.253,0.49921456]
[1772744518774,11.19921157,89.292,89.254,11.20397965]
[1772744518964,11.19921157,89.292,89.255,0.49921456]
[1772744518965,0.21380887,89.291,89.255,0.49921456]
[1772744519163,0.21380887,89.289,89.255,0.49921456]
[1772744519678,0.21380887,89.289,89.242,0.50498516]
[1772744519862,0.21440121,89.279,89.242,0.50498516]
[1772744521062,0.21469291,89.277,89.226,0.50498516]
[1772744521264,0.21469291,89.259,89.221,11.20807947]
[1772744521672,95.20822597,89.278,89.212,0.50498516]
[1772744521673,0.21498175,89.249,89.212,0.50498516]
[1772744523168,0.21526703,89.247,89.214,0.50498516]
[1772744524978,11.20473287,89.248,89.214,0.50498516]
[1772744525173,28.01074473,89.252,89.215,11.20887743]
[1772744525372,28.01074473,89.252,89.216,0.50498516]
[1772744525677,0.21611347,89.289,89.219,0.50498516]
[1772744525859,0.21611347,89.289,89.224,0.50498516]
[1772744526261,0.21611347,89.284,89.224,0.50498516]
[1772744527080,0.21638498,89.279,89.224,0.50498516]
[1772744527262,28.00025544,89.285,89.227,0.50498516]
[1772744527263,11.41735274,89.278,89.227,0.50498516]
[1772744527771,0.21665129,89.277,89.227,0.50498516]
[1772744529875,0.21717437,89.275,89.23,0.50498516]
[1772744531777,0.21768779,89.269,89.23,0.50498516]
[1772744531977,0.21768779,89.267,89.232,0.50498516]
[1772744532378,0.21768779,89.288,89.232,0.50498516]
[1772744533390,0.21794043,89.269,89.224,0.50498516]
[1772744533575,0.21819292,89.249,89.208,0.50498516]
[1772744534086,0.21819292,89.249,89.21,0.50498516]
[1772744534087,0.21819292,89.247,89.21,0.50498516]
[1772744535384,0.21845369,89.269,89.213,0.50498516]
[1772744535895,11.20184606,89.271,89.214,0.50498516]
[1772744536189,11.20021504,89.284,89.234,0.64714673]
[1772744536367,11.20021504,89.284,89.235,0.50498516]
[1772744536575,11.19950573,89.29,89.244,0.50498516]
[1772744537774,0.21918085,89.299,89.247,0.50498516]
[1772744538792,0.21918085,89.299,89.249,0.28432314]
[1772744538996,0.21918085,89.299,89.25,0.50498516]
[1772744539202,0.21942702,89.297,89.25,0.50498516]
[1772744540196,0.21966068,89.289,89.242,11.2054603]
[1772744540403,0.21966068,89.289,89.243,0.50498516]
[1772744541078,0.21990349,89.279,89.243,0.50498516]
[1772744542800,0.22036264,89.277,89.243,0.50498516]
[1772744543304,0.22036264,89.277,89.235,0.50498516]
[1772744543501,0.22036264,89.269,89.235,0.50498516]
[1772744545202,11.20222252,89.268,89.236,11.20623963]
[1772744545402,11.20222252,89.268,89.237,0.50498516]
[1772744546299,0.22103358,89.267,89.237,0.50498516]
[1772744546985,0.22103358,89.267,89.231,0.50498516]
[1772744548207,0.22146805,89.265,89.233,0.50498516]
[1772744553013,11.2027245,89.264,89.235,0.50739796]
[1772744553205,0.22295483,89.263,89.235,0.50739796]
[1772744554492,0.22295483,89.263,89.226,28.01854934]
[1772744554493,0.22316044,89.259,89.22,0.50739796]
[1772744555204,0.22335562,89.257,89.22,0.50739796]
[1772744557115,0.22335562,89.257,89.213,0.50739796]
[1772744557318,0.2237389,89.255,89.213,0.50739796]
[1772744557509,0.2237389,89.255,89.214,11.20900307]
[1772744557710,0.2237389,89.255,89.215,0.50739796]
[1772744561112,0.22446886,89.255,89.217,0.50739796]
[1772744563599,11.20397965,89.254,89.219,0.50739796]
[1772744564000,11.20342925,89.259,89.219,0.50739796]
[1772744564201,11.20209703,89.269,89.22,0.50739796]
[1772744566919,0.22550743,89.275,89.222,0.50739796]
[1772744570139,11.20146963,89.274,89.223,39.22755342]
[1772744570325,0.22600327,89.273,89.224,0.50739796]
[1772744573923,0.2266382,89.271,89.226,0.50739796]
[1772744576132,11.20197154,89.27,89.229,0.50739796]
[1772744577826,0.22693823,89.276,89.229,0.50739796]
[1772744578021,0.2272314,89.275,89.232,0.50739796]
[1772744578610,11.19958785,89.289,89.235,0.50739796]
[1772744579424,0.22737698,89.288,89.235,0.50739796]
[1772744580415,0.22695319,89.286,89.238,0.51914028]
[1772744581527,0.22639291,89.279,89.238,0.51914028]
[1772744582511,0.22529209,89.277,89.24,0.51914028]
[1772744583524,39.20338716,89.278,89.24,0.51914028]
[1772744583525,11.20096776,89.278,89.24,0.51914028]
[1772744585429,11.20021504,89.284,89.242,0.51914028]
[1772744586028,11.1997726,89.288,89.245,0.51914028]
[1772744586627,0.22315952,89.287,89.245,0.51914028]
[1772744587229,0.22315952,89.285,89.247,0.51914028]
[1772744588433,39.19987456,89.286,89.247,0.51914028]
[1772744588635,11.19996416,89.286,89.247,0.51914028]
[1772744589456,11.42158925,89.29,89.249,0.51914028]
[1772744590341,11.19946242,89.29,89.249,0.51914028]
[1772744590539,0.22161816,89.289,89.249,0.51914028]
[1772744591538,28.21809483,89.296,89.252,0.51914028]
[1772744592438,0.22061735,89.295,89.252,0.51914028]
[1772744594143,27.99697963,89.296,89.254,0.51914028]
[1772744594144,11.41859817,89.294,89.254,0.51914028]
[1772744595123,11.41859817,89.294,89.256,0.51914028]
[1772744596037,0.21869014,89.293,89.256,0.51914028]
[1772744597242,0.21821989,89.291,89.258,0.51914028]
[1772744598245,11.19946242,89.29,89.259,11.20335204]
[1772744598432,11.19946242,89.29,89.26,0.51914028]
[1772744598636,11.19879298,89.296,89.26,0.51914028]
[1772744598844,0.21729551,89.295,89.26,0.51914028]
[1772744600039,0.21684299,89.302,89.262,0.51914028]
[1772744601349,0.21639495,89.308,89.262,0.51914028]
[1772744602242,11.41328234,89.307,89.264,0.51914028]
[1772744602743,0.21551471,89.306,89.264,0.51914028]
[1772744603330,11.19758132,89.305,89.266,0.51914028]
[1772744605448,0.2,89.32,89.274,0.51914028]
[1772744605633,0.2,89.32,89.276,0.28432314]
[1772744605842,1e-08,89.32,89.295,0.51914028]
[1772744606148,1e-08,89.32,89.285,4.82477569]
[1772744606149,1e-08,89.32,89.299,0.51914028]
[1772744606333,1e-08,89.33,89.304,0.51914028]
[1772744606656,1e-08,89.33,89.295,0.28432314]
[1772744606657,1e-08,89.33,89.308,0.51914028]
[1772744606831,0.1,89.35,89.314,0.51914028]
[1772744606832,1e-08,89.34,89.314,0.51914028]
[1772744607252,1e-08,89.34,89.316,0.28432314]
[1772744607453,1e-08,89.34,89.317,0.51914028]
[1772744609447,1e-08,89.34,89.32,0.50738655]
[1772744611452,1e-08,89.34,89.322,0.51463388]
[1772744613437,1e-08,89.34,89.324,0.51463388]
[1772744615443,1e-08,89.34,89.325,11.19507416]
[1772744615645,1e-08,89.34,89.325,11.70970804]
[1772744616467,1e-08,89.34,89.326,0.51463388]
[1772744616842,1e-08,89.34,89.327,11.19482351]
[1772744617238,1e-08,89.34,89.326,0.51463388]
[1772744618152,1e-08,89.34,89.32,0.51463388]
[1772744619039,1e-08,89.34,89.322,0.51463388]
[1772744620750,0.41001824,89.339,89.272,56.00860292]
[1772744620961,1e-08,89.34,89.283,0.51463388]
[1772744620962,0.41001824,89.337,89.283,0.51463388]
[1772744621374,1e-08,89.34,89.302,0.51463388]
[1772744621576,1e-08,89.34,89.287,3.69383402]
[1772744621577,1e-08,89.34,89.315,0.51463388]
[1772744623567,1e-08,89.34,89.318,0.51463388]
[1772744626269,1e-08,89.34,89.321,0.51463388]
[1772744627859,0.1,89.36,89.327,0.65679545]
[1772744628060,0.1,89.36,89.33,0.51463388]
[1772744628370,0.1,89.36,89.332,0.51463388]
[1772744628554,0.1,89.36,89.335,0.51463388]
[1772744628746,0.1,89.36,89.337,0.51463388]
[1772744628944,0.40853429,89.376,89.341,0.51463388]
[1772744629172,0.40853429,89.376,89.342,0.51463388]
[1772744629871,0.1,89.38,89.342,0.51463388]
[1772744630454,0.40791554,89.377,89.342,0.51463388]
[1772744630758,0.40791554,89.371,89.342,0.51463388]
[1772744631152,0.40791554,89.371,89.344,0.51463388]
[1772744631352,0.40791554,89.378,89.344,0.51463388]
[1772744631553,0.1,89.38,89.347,0.51463388]
[1772744631866,0.1,89.38,89.35,0.51463388]
[1772744632061,0.70771168,89.4,89.358,0.51463388]
[1772744632264,0.50771168,89.399,89.358,0.51463388]
[1772744632454,0.50771168,89.398,89.345,0.51463388]
[1772744633674,0.50746885,89.396,89.348,0.51463388]
[1772744635749,0.50723011,89.394,89.351,0.51463388]
[1772744639172,0.50688554,89.392,89.353,0.51463388]
[1772744641359,0.48275669,89.39,89.355,0.51684318]
[1772744643759,0.48275669,89.39,89.358,0.51684318]
[1772744646180,1.1844006,89.417,89.365,0.51684318]
[1772744647560,0.48275669,89.416,89.365,0.51684318]
[1772744648063,0.48275669,89.416,89.368,0.51684318]
[1772744648785,11.18368077,89.416,89.368,0.51684318]
[1772744648957,0.48275669,89.415,89.368,0.51684318]
[1772744649362,0.70164391,89.417,89.368,0.51684318]
[1772744649694,0.70164391,89.417,89.374,0.51684318]
[1772744650084,0.70164391,89.417,89.376,0.28432314]
[1772744650291,0.70164391,89.417,89.377,0.51684318]
[1772744650879,0.48275669,89.416,89.377,0.51684318]
[1772744651771,0.48275669,89.415,89.377,0.51684318]
[1772744652167,0.70164391,89.417,89.375,39.16083915]
[1772744652168,0.48275669,89.413,89.378,11.18843563]
[1772744653286,0.48275669,89.413,89.379,0.51684318]
[1772744653986,0.1,89.43,89.379,0.28432314]
[1772744654169,0.1,89.43,89.386,0.51684318]
[1772744654369,0.1,89.43,89.387,0.51684318]
[1772744654877,0.1,89.43,89.398,0.51684318]
[1772744655385,0.48275669,89.452,89.399,0.51684318]
[1772744655890,0.48275669,89.451,89.402,0.51684318]
[1772744659568,0.48275669,89.451,89.404,0.28432314]
[1772744659798,0.48275669,89.451,89.405,0.51684318]
[1772744660373,11.17838025,89.459,89.408,0.51684318]
[1772744661174,6.95346917,89.479,89.408,0.51684318]
[1772744661175,0.48275669,89.477,89.408,0.51684318]
[1772744661799,0.48275669,89.475,89.411,0.51684318]
[1772744662796,0.48275669,89.473,89.414,0.51684318]
[1772744665080,0.48275669,89.469,89.415,11.18380584]
[1772744665676,0.48275669,89.469,89.416,0.51684318]
[1772744666991,0.48275669,89.467,89.418,0.51684318]
[1772744669600,0.50669642,89.465,89.42,0.47497702]
[1772744671375,0.48531933,89.463,89.422,0.48913588]
[1772744674100,0.48531933,89.461,89.424,0.48913588]
[1772744675604,11.17627485,89.476,89.425,0.48913588]
[1772744675803,0.48531933,89.475,89.425,0.48913588]
[1772744676111,0.48531933,89.473,89.427,0.48913588]
[1772744677802,0.46532782,89.469,89.427,0.48913588]
[1772744678706,39.12013232,89.468,89.428,11.18218007]
[1772744678906,0.46532782,89.467,89.428,11.18218007]
[1772744679209,0.46532782,89.467,89.429,0.50889627]
[1772744680895,4.32897986,89.48,89.43,11.18193]
[1772744680896,0.46532782,89.465,89.43,11.18193]
[1772744681806,0.46532782,89.465,89.426,11.18235073]
[1772744682319,0.46532782,89.465,89.426,11.691247]
[1772744682762,0.46532782,89.465,89.427,0.50889627]
[1772744683409,0.46532782,89.465,89.419,27.95821026]
[1772744683410,0.46532782,89.463,89.408,0.50889627]
[1772744683716,0.46532782,89.463,89.41,0.50889627]
[1772744684802,0.46532782,89.461,89.412,0.50889627]
[1772744686917,0.46532782,89.459,89.414,0.50889627]
[1772744689314,0.46532782,89.457,89.416,0.50889627]
[1772744691115,0.46532782,89.455,89.418,0.50889627]
[1772744692618,0.46532782,89.455,89.401,61.9]
[1772744692619,0.46532782,89.455,89.412,11.6929642]
[1772744692822,0.46532782,89.455,89.412,11.18406793]
[1772744693120,0.46532782,89.453,89.407,0.50889627]
[1772744694023,0.46532782,89.449,89.401,0.50889627]
[1772744695221,0.14216157,89.464,89.403,0.50889627]
[1772744695222,0.46532782,89.447,89.403,0.50889627]
[1772744696913,11.17992979,89.446,89.405,0.50889627]
[1772744698827,0.46532782,89.445,89.405,0.50889627]
[1772744699009,11.18017977,89.444,89.407,0.50889627]
[1772744700324,0.49508737,89.47,89.408,0.50532586]
[1772744700906,3.69383402,89.498,89.406,95.07191911]
[1772744700907,0.49508737,89.474,89.419,0.50532586]
[1772744701118,0.49508737,89.474,89.42,0.50532586]
[1772744701826,60.09035202,89.5,89.418,39.14200719]
[1772744701827,0.49508737,89.481,89.427,0.50532586]
[1772744702518,0.59508737,89.48,89.427,0.50532586]
[1772744702824,11.67089398,89.479,89.43,0.50532586]
[1772744703026,0.1,89.48,89.431,3.69383402]
[1772744703321,0.1,89.48,89.432,0.50532586]
[1772744704118,0.49508737,89.479,89.432,0.50532586]
[1772744705029,0.49508737,89.477,89.434,0.50532586]
[1772744706034,0.49508737,89.477,89.42,0.28432314]
[1772744706035,0.49508737,89.477,89.426,11.18234576]
[1772744706212,0.49508737,89.477,89.427,0.50532586]
[1772744707214,0.49508737,89.469,89.428,11.18218007]
[1772744707615,0.49508737,89.469,89.428,11.68750593]
[1772744707815,0.49508737,89.469,89.429,0.50532586]
[1772744709134,0.49508737,89.467,89.421,0.50532586]
[1772744709439,0.49508737,89.467,89.423,0.50532586]
[1772744711140,0.49508737,89.465,89.423,0.50532586]
[1772744712233,0.49508737,89.465,89.417,11.68877283]
[1772744712414,0.49508737,89.459,89.41,11.18440824]
[1772744712817,0.49508737,89.458,89.408,0.50532586]
[1772744713438,0.49508737,89.449,89.405,0.50532586]
[1772744715438,0.49508737,89.447,89.407,0.50532586]
[1772744716445,0.49508737,89.444,89.387,0.50532586]
[1772744717143,0.49508737,89.439,89.387,0.50532586]
[1772744718524,0.49508737,89.437,89.389,0.50532586]
[1772744719032,0.49508737,89.419,89.367,0.50532586]
[1772744720523,11.18343062,89.418,89.37,0.50532586]
[1772744721034,11.67851799,89.418,89.37,0.50532586]
[1772744721221,0.49508737,89.417,89.37,0.50532586]
[1772744722644,0.49508737,89.415,89.372,0.50532586]
[1772744724652,0.49508737,89.407,89.348,0.50532586]
[1772744725952,0.49508737,89.405,89.351,0.50532586]
[1772744727790,0.49508737,89.399,89.351,0.50532586]
[1772744728129,0.49508737,89.397,89.353,0.50532586]
[1772744730158,0.46396027,89.395,89.355,0.4991634]
[1772744731641,0.46396027,89.401,89.356,39.16916602]
[1772744731849,0.46396027,89.401,89.357,0.4991634]
[1772744733750,0.46396027,89.399,89.359,0.4991634]
[1772744735837,0.46396027,89.397,89.359,0.4991634]
[1772744736046,0.46396027,89.397,89.347,0.4991634]
[1772744737166,0.46396027,89.395,89.349,0.4991634]
[1772744738346,0.46396027,89.393,89.351,0.4991634]
[1772744739167,0.46396027,89.406,89.352,0.4991634]
[1772744740270,4.22421016,89.42,89.355,0.4991634]
[1772744740271,0.46396027,89.404,89.355,0.4991634]
[1772744744872,0.46396027,89.402,89.358,0.4991634]
[1772744748160,0.46396027,89.408,89.36,0.4991634]
[1772744748364,0.46396027,89.408,89.361,0.4991634]
[1772744751083,0.46396027,89.406,89.363,0.4991634]
[1772744751580,11.18480655,89.407,89.363,0.4991634]
[1772744751581,0.46396027,89.399,89.363,0.4991634]
[1772744753164,11.64814819,89.412,89.366,0.4991634]
[1772744753362,0.46396027,89.411,89.366,0.4991634]
[1772744755281,0.46396027,89.409,89.369,0.4991634]
[1772744756460,0.46396027,89.409,89.372,0.4991634]
[1772744757390,0.46396027,89.407,89.372,0.4991634]
[1772744758775,0.46396027,89.405,89.374,0.4991634]
[1772744760562,0.50237282,89.403,89.374,0.4991634]
[1772744760968,0.50237282,89.403,89.375,11.18881118]
[1772744761374,0.50237282,89.403,89.369,28.45910054]
[1772744761568,4.22674751,89.4,89.36,0.48523184]
[1772744761767,0.50237282,89.399,89.36,0.48523184]
[1772744763075,4.22674751,89.41,89.362,0.48523184]
[1772744763076,0.50237282,89.397,89.362,0.48523184]
[1772744765317,0.50237282,89.395,89.364,0.48523184]
[1772744767284,27.96483142,89.398,89.365,11.67529506]
[1772744767285,0.50237282,89.393,89.365,11.67529506]
[1772744767486,0.50237282,89.393,89.365,11.19006322]
[1772744770463,0.50237282,89.391,89.363,0.48523184]
[1772744772386,0.50237282,89.403,89.365,0.48523184]
[1772744772888,11.18543209,89.402,89.365,0.48523184]
[1772744773187,11.68780491,89.402,89.365,0.48523184]
[1772744773978,11.68780491,89.402,89.367,0.48523184]
[1772744774493,11.68709405,89.408,89.368,0.48523184]
[1772744775587,11.68709405,89.408,89.37,0.48523184]
[1772744775787,11.68709405,89.408,89.371,0.48523184]
[1772744776771,0.50237282,89.407,89.372,39.64738552]
[1772744776980,0.50237282,89.407,89.373,0.48523184]
[1772744777994,11.18493166,89.406,89.374,11.18893637]
[1772744778196,0.50237282,89.405,89.375,0.48523184]
[1772744781285,0.50237282,89.403,89.376,0.48523184]
[1772744781491,0.50237282,89.403,89.371,0.48523184]
[1772744782191,0.50237282,89.403,89.365,0.48523184]
[1772744784101,39.14901232,89.402,89.366,11.189938]
[1772744784308,0.50237282,89.401,89.367,0.48523184]
[1772744787098,0.50237282,89.399,89.369,0.48523184]
[1772744788605,0.50237282,89.399,89.362,11.19036904]
[1772744788810,0.50237282,89.399,89.363,0.46233286]
[1772744789215,0.46018251,89.397,89.352,0.46233286]
[1772744789392,0.46018251,89.389,89.352,0.46233286]
[1772744791219,0.46719603,89.387,89.352,0.46233286]
[1772744791798,0.46719603,89.387,89.354,0.45998819]
[1772744792223,39.15514386,89.388,89.354,0.45998819]
[1772744792224,11.18718396,89.388,89.354,0.45998819]
[1772744793526,11.18718396,89.388,89.356,0.45998819]
[1772744794526,11.18718396,89.388,89.358,0.45998819]
[1772744796317,0.46719603,89.387,89.358,0.45998819]
[1772744797324,0.46719603,89.385,89.358,0.45998819]
[1772744799020,11.18768459,89.384,89.358,0.45998819]
[1772744799324,0.46719603,89.383,89.358,0.45998819]
[1772744800223,0.46719603,89.383,89.345,0.45998819]
[1772744801916,0.46719603,89.381,89.347,0.45998819]
[1772744805231,0.46719603,89.379,89.349,0.45998819]
[1772744806308,0.46719603,89.379,89.336,0.45998819]
[1772744810516,0.46719603,89.379,89.335,11.19382101]
[1772744810517,0.46719603,89.377,89.331,0.45998819]
[1772744811227,0.46719603,89.377,89.333,0.45998819]
[1772744814029,0.46719603,89.375,89.334,11.19394631]
[1772744814235,0.46719603,89.375,89.335,0.45998819]
[1772744816321,0.46719603,89.373,89.337,0.45998819]
[1772744817337,39.16127731,89.374,89.31,0.2]
[1772744817338,0.46719603,89.349,89.31,0.2]
[1772744817536,0.46719603,89.339,89.31,0.2]
[1772744818323,0.46719603,89.337,89.31,0.65998819]
[1772744818720,0.46719603,89.337,89.286,11.19996416]
[1772744819129,0.46719603,89.337,89.287,0.28432314]
[1772744819523,0.46719603,89.337,89.287,0.14216157]
[1772744819923,0.45763031,89.335,89.287,0.28432314]
[1772744820846,0.45763031,89.335,89.288,0.47522961]
[1772744821743,39.16303009,89.37,89.292,0.61739118]
[1772744821927,39.16303009,89.37,89.298,0.47522961]
[1772744821928,0.45763031,89.354,89.298,0.47522961]
[1772744822132,0.45763031,89.368,89.308,0.47522961]
[1772744823042,0.45763031,89.368,89.317,0.47522961]
[1772744823848,11.18981279,89.367,89.32,0.47522961]
[1772744825943,0.45763031,89.367,89.323,0.47522961]
[1772744828733,0.45763031,89.365,89.326,0.47522961]
[1772744832256,0.45763031,89.363,89.328,0.47522961]
[1772744834234,0.45763031,89.361,89.33,0.47522961]
[1772744837256,0.45763031,89.359,89.332,0.47522961]
[1772744839059,0.45763031,89.359,89.334,0.47522961]
[1772744839249,11.19068934,89.36,89.334,0.47522961]
[1772744840263,11.64831965,89.36,89.336,0.47522961]
[1772744840437,0.45763031,89.359,89.336,0.47522961]
[1772744843267,11.64857012,89.358,89.338,0.47522961]
[1772744844468,0.45763031,89.358,89.338,0.47522961]
[1772744844661,11.64857012,89.358,89.338,0.47522961]
[1772744844859,0.45763031,89.357,89.338,0.47522961]
[1772744845561,0.45763031,89.355,89.317,0.47522961]
[1772744846241,0.45763031,89.349,89.303,0.47522961]
[1772744846446,0.45763031,89.329,89.291,11.6745666]
[1772744846664,0.45763031,89.329,89.292,0.47522961]
[1772744847367,0.45763031,89.327,89.292,0.47522961]
[1772744848153,0.45763031,89.327,89.293,11.67431576]
[1772744850270,0.49227277,89.325,89.294,0.46264941]
[1772744853055,11.19519949,89.324,89.295,11.19883532]
[1772744853261,0.49227277,89.323,89.296,0.46264941]
[1772744854956,11.19545016,89.322,89.297,11.19858449]
[1772744855154,0.49227277,89.321,89.298,0.46264941]
[1772744858483,0.49227277,89.319,89.298,0.46264941]
[1772744859173,11.19382101,89.335,89.3,0.46264941]
[1772744859383,10.93399861,89.335,89.287,0.46264941]
[1772744859779,11.19256813,89.345,89.29,0.46264941]
[1772744860559,27.97831617,89.355,89.293,0.46264941]
[1772744860982,0.49227277,89.354,89.293,0.46264941]
[1772744862763,0.49227277,89.352,89.296,0.46264941]
[1772744863983,0.49227277,89.352,89.299,0.46264941]
[1772744866083,0.49227277,89.35,89.301,0.28432314]
[1772744866387,0.49227277,89.35,89.302,0.46264941]
[1772744868083,0.49227277,89.348,89.304,0.46264941]
[1772744871190,0.49227277,89.346,89.306,0.46264941]
[1772744873171,0.49227277,89.344,89.308,0.46264941]
[1772744875472,0.49227277,89.342,89.31,0.46264941]
[1772744878301,0.49227277,89.342,89.312,0.46264941]
[1772744878589,55.94563112,89.373,89.311,11.19682905]
[1772744878590,0.49227277,89.366,89.32,0.46264941]
[1772744878799,11.00730761,89.363,89.32,0.46264941]
[1772744879385,0.49227277,89.361,89.32,0.46264941]
[1772744879689,11.19043888,89.362,89.287,0.46485852]
[1772744879690,0.49227277,89.359,89.287,0.46485852]
[1772744880384,0.46825186,89.357,89.289,0.46485852]
[1772744880570,0.46825186,89.357,89.293,5.28963421]
[1772744880777,0.46825186,89.357,89.297,0.46485852]
[1772744882680,0.46825186,89.355,89.3,0.46485852]
[1772744884397,0.46825186,89.353,89.303,0.46485852]
[1772744886180,0.46825186,89.351,89.306,0.46485852]
[1772744886601,0.46825186,89.362,89.309,0.46485852]
[1772744887901,0.46825186,89.36,89.312,0.46485852]
[1772744889293,10.51503484,89.363,89.313,61.9]
[1772744889499,27.97080853,89.379,89.329,0.46485852]
[1772744889500,0.46825186,89.379,89.329,0.46485852]
[1772744889895,0.46825186,89.378,89.332,0.46485852]
[1772744893306,0.46825186,89.376,89.326,0.46485852]
[1772744894904,0.46825186,89.374,89.328,0.46485852]
[1772744898315,0.46825186,89.372,89.33,0.46485852]
[1772744901100,0.46825186,89.37,89.332,0.46485852]
[1772744902715,0.46825186,89.368,89.334,0.46485852]
[1772744904117,11.18981279,89.367,89.335,11.19382101]
[1772744904418,0.46825186,89.366,89.336,0.46485852]
[1772744911622,0.50131748,89.364,89.338,0.49613553]
[1772744913199,11.18967456,89.369,89.338,0.49613553]
[1772744913399,11.18913403,89.373,89.338,0.49613553]
[1772744914119,11.18913403,89.373,89.34,0.49613553]
[1772744915216,11.18913403,89.373,89.342,0.49613553]
[1772744918022,0.50131748,89.372,89.342,0.49613553]
[1772744919107,11.18931196,89.371,89.343,11.19281868]
[1772744919309,0.50131748,89.37,89.343,11.19281868]
[1772744919507,0.50131748,89.37,89.344,0.49613553]
[1772744920218,0.50131748,89.368,89.346,0.49613553]
[1772744920413,0.50131748,89.399,89.346,0.49613553]
[1772744921830,0.50131748,89.399,89.345,11.19256813]
[1772744921831,0.50131748,89.391,89.348,0.49613553]
[1772744924531,0.50131748,89.389,89.35,0.49613553]
[1772744926235,0.50131748,89.387,89.35,0.49613553]
[1772744928222,0.50131748,89.385,89.35,0.49613553]
[1772744930218,0.50131748,89.383,89.35,0.49613553]
[1772744930834,0.50131748,89.383,89.352,0.49613553]
[1772744932333,0.50131748,89.381,89.354,0.49613553]
[1772744935840,11.18818527,89.38,89.354,0.49613553]
[1772744937332,0.50131748,89.38,89.354,0.49613553]
[1772744938541,11.68962793,89.379,89.354,0.49613553]
[1772744939241,0.50131748,89.378,89.354,0.49613553]
[1772744940633,0.46615029,89.376,89.354,0.49613553]
[1772744940822,0.46615029,89.376,89.325,0.28432314]
[1772744941022,0.46615029,89.376,89.325,11.4793973]
[1772744941944,0.46615029,89.376,89.325,39.46708271]
[1772744942245,0.46615029,89.374,89.325,39.46708271]
[1772744942751,0.46615029,89.374,89.326,0.47700556]
[1772744943242,0.46615029,89.372,89.328,0.28432314]
[1772744943441,0.46615029,89.372,89.329,0.47700556]
[1772744946130,11.18931196,89.371,89.33,39.18056643]
[1772744946334,0.46615029,89.37,89.332,0.47700556]
[1772744948539,0.46615029,89.368,89.334,0.47700556]
[1772744949841,0.46615029,89.366,89.336,0.47700556]
[1772744950330,0.46615029,89.366,89.317,0.47700556]
[1772744951954,11.19006322,89.365,89.32,0.47700556]
[1772744952153,0.46615029,89.364,89.32,0.47700556]
[1772744955057,0.46615029,89.362,89.322,0.47700556]
[1772744956248,0.46615029,89.384,89.325,0.47700556]
[1772744958966,0.46615029,89.382,89.328,0.47700556]
[1772744961173,0.46615029,89.38,89.33,39.322728]